Cogmind - Beta 16.1 @@@ ROGUE MODE // 2026.02.28 @ 18:32:27 Player: UniqueName Result: Destroyed by NR-AX7(j) with Overtuned Pulse Rifle Performance ------------- Evolutions (0) 0 Regions Visited (4) 800 Robots Destroyed (18) 90 Value Destroyed (560) 560 Prototype IDs (0) 0 Alien Tech Used (0) 0 Bonus (646) 646 TOTAL SCORE: 2096 Bonus ------- Registered with UFD 300 Met Optimus in HQ 500 Friendly Fire -154 Cogmind --------- Core Integrity 0/250 Matter 269/300 Energy 140/140 System Corruption 0% Temperature Warm (163) Movement Treading (140) Location -8/Scraptown Parts ------- > --- POWER (1) -------- Light Deuterium Engine > --- PROPULSION (2) --- Overtuned Treads Overtuned Treads > --- UTILITY (2) ------ Large Storage Unit Improved Signal Interpreter > --- WEAPON (2) ------- Gauss Cannon > --- INVENTORY (15) --- Angular Momentum Engine Scrap Suit Armor Integrity Analyzer Force Field Scrapoid Pod High-powered Shotgun Gauss Rifle Gauss Rifle Gauss Rifle Gauss Rifle Missile Launcher Chainsword Makeshift Spear Peak State ------------ > --- POWER ------------ Light Deuterium Engine > --- PROPULSION ------- Carbon-fiber Leg Titanium Leg > --- UTILITY ---------- Large Storage Unit Improved Signal Interpreter > --- WEAPON ----------- Advanced Assault Cannon Gauss Cannon > --- INVENTORY -------- Angular Momentum Engine Scrap Suit Armor Integrity Analyzer Force Field Scrapoid Pod High-powered Shotgun Gauss Rifle Gauss Rifle Gauss Rifle Gauss Rifle Missile Launcher Chainsword Makeshift Spear [Rating: 27] Favorites ----------- Power Light Nuclear Core Engine Light Deuterium Engine Power Core Light Nuclear Core Propulsion Improved Hover Unit Treads Light Treads Leg Carbon-fiber Leg Hover Unit Improved Hover Unit Utility Medium Storage Unit Device Disposable Heat Sink Storage Medium Storage Unit Processor Improved Signal Interpreter Protection Propulsion Shielding Weapon Gauss Cannon Energy Gun Small Laser Ballistic Gun Heavy Assault Rifle Ballistic Cannon Gauss Cannon Build | -11 -10 -10 -10 -8 ------- Run | Yrd Mat Min Sub Scr Slots Evolved . | . . . . . Power . | . . . . . Propulsion . | . . . . . Utility . | . . . . . Weapon . | . . . . . Parts Attached 30 | 5 12 2 . 11 Power 4 | . 1 1 . 2 Engine 2 | . 1 . . 1 Core 2 | . . 1 . 1 Reactor . | . . . . . Propulsion 11 | 2 3 1 . 5 Treads 5 | 2 . . . 3 Leg 2 | . . . . 2 Wheel . | . . . . . Hover 4 | . 3 1 . . Flight . | . . . . . Utility 7 | 1 4 . . 2 Device 1 | . 1 . . . Storage 4 | 1 2 . . 1 Processor 1 | . . . . 1 Hackware . | . . . . . Protection 1 | . 1 . . . Artifact . | . . . . . Weapon 8 | 2 4 . . 2 Energy Gun 3 | 2 1 . . . Energy Cannon . | . . . . . Ballistic Gun 2 | . 2 . . . Ballistic Cannon 3 | . 1 . . 2 Launcher . | . . . . . Special Weapon . | . . . . . Impact Weapon . | . . . . . Slashing Weapon . | . . . . . Piercing Weapon . | . . . . . Special Melee Weapon . | . . . . . Unidentified Prototypes . | . . . . . Parts Lost 4 | . 2 1 . 1 Power 1 | . . 1 . . Propulsion 1 | . 1 . . . Utility . | . . . . . Weapon 2 | . 1 . . 1 Highest Loss Streak 2 | . 2 1 . 1 To Critical Strikes . | . . . . . Average Backups 10 | 3 8 10 10 10 Power 1 | 1 1 1 1 1 Propulsion 2 | 1 2 3 3 1 Utility 2 | . 1 3 3 3 Weapon 3 | . 2 2 3 4 Tool/Special . | . . . . . Unused Backups 24 | . 4 . . 20 Power 2 | . . . . 2 Propulsion 4 | . 2 . . 2 Utility 5 | . . . . 5 Weapon 12 | . 2 . . 10 Tool/Special 1 | . . . . 1 Average Slot Usage (%) 97 | . 91 97 100 99 Engine 5 | . 9 2 . 4 Core 7 | . . 9 14 9 Treads 1 | . 5 . . . Leg 4 | . . . . 6 Hover 21 | . 21 28 28 20 Storage 14 | . 14 14 14 14 Processor 6 | . . . . 9 Protection 6 | . 9 14 14 4 Energy Gun 4 | . 23 . . . Ballistic Gun 7 | . 2 28 28 5 Ballistic Cannon 15 | . 1 . . 22 Peak Build Rating 27 | 5 12 14 14 27 Average Rating 17 | 3 9 13 14 20 On Entrance 9 | . 5 12 14 14 Avg Prop Armor Cover (%) . | . . . . . Naked Turns . | . . . . . Heaviest Build 38 | 8 22 22 22 38 Greatest Support 40 | 40 40 14 14 36 Greatest Overweight (x) 2 | . 2 1 1 2 Average Overweight (x) . | . . 1 1 . Largest Inventory Capacity 15 | 8 15 10 10 15 Average Capacity 10 | 6 9 10 10 11 Most Carried 15 | 5 10 10 10 15 Average Carried 10 | 3 8 10 10 11 Final Capacity 15 | 8 10 10 10 15 Final Carried 15 | 5 10 10 10 15 Class Distribution -------------------- 100% | Mutant Dominant Class ---------------- Mutant | -10/Materials Mutant | -10/Mines Mutant | -10/Subcaves Mutant | -8/Scraptown Resources | -11 -10 -10 -10 -8 ----------- Run | Yrd Mat Min Sub Scr Matter Collected 795 | 241 145 99 48 262 Remotely . | . . . . . Salvage Created 824 | . 307 99 102 316 Parts 37 | . 13 3 6 15 Haulers Intercepted . | . . . . . Recyclers Shooed 1 | . 1 . . . Parts Field Recycled . | . . . . . Retrieved Matter . | . . . . . Parts Self-Destructed 6 | . . . 6 . Prevented . | . . . . . Parts Restored . | . . . . . Kills | -11 -10 -10 -10 -8 ------- Run | Yrd Mat Min Sub Scr Combat Hostiles Destroyed 16 | . 8 2 2 4 Guns 9 | . 5 2 2 . Cannons 7 | . 3 . . 4 Classes Destroyed 6 | . 3 . . 3 Recycler 1 | . 1 . . . Swarmer 3 | . 3 . . . Grunt 9 | . 5 2 2 . Federalist 1 | . . . . 1 Scrapper 3 | . . . . 3 Elite 1 | . . . . 1 Best Kill Streak 5 | . 5 1 2 1 Combat Bots Only 5 | . 5 1 2 1 Max Kills in Single Turn 1 | . 1 1 1 1 Gunslinging . | . . . . . Exploded . | . . . . . Melee . | . . . . . Uniques/NPCs Destroyed . | . . . . . Combat | -11 -10 -10 -10 -8 -------- Run | Yrd Mat Min Sub Scr Hostile Shots Fired 128 | . 55 18 8 47 Missed 24 | . 11 2 4 7 Hits 104 | . 44 16 4 40 Melee 10 | . . . . 10 Projectile 94 | . 44 16 4 30 Critical Strikes 5 | . . 2 1 2 Actively Blocked 2 | . . 2 . . Damage Taken 1169 | . 414 250 55 450 Core 265 | . 122 32 24 87 Absorbed by Shields . | . . . . . Redirected to Shielding 29 | . 19 10 . . Core Remaining (%) 100 | 100 . . . . Volleys Fired 72 | . 41 12 5 14 Largest 2 | . 2 2 2 2 Hottest 90 | . 90 46 46 80 Shots Fired 129 | . 67 24 10 28 Gun 92 | . 58 24 10 . Cannon 37 | . 9 . . 28 Launcher . | . . . . . Special . | . . . . . Kinetic 71 | . 9 24 10 28 Thermal 58 | . 58 . . . Explosive . | . . . . . Electromagnetic . | . . . . . Robot Hit Streak 10 | . 7 8 10 5 Robot Miss Streak 3 | . 3 3 2 3 Penetration Max . | . . . . . Secondary Targets 1 | . . . 1 . Max Gunslinging Chain 1 | . . . 1 . Shots Hit Robots 80 | . 43 17 7 13 Core Hits 30 | . 16 4 4 6 Critical Kills . | . . . . . Critical Parts Destroyed . | . . . . . Critical Strikes 4 | . 3 . . 1 Burn 3 | . 3 . . . Blast 1 | . . . . 1 Melee Attacks . | . . . . . Impact . | . . . . . Slashing . | . . . . . Piercing . | . . . . . Sneak Attacks . | . . . . . Combat Hostiles . | . . . . . Follow-up Attacks . | . . . . . Damage Inflicted 1275 | . 529 251 99 396 Guns 818 | . 468 251 99 . Cannons 457 | . 61 . . 396 Explosions . | . . . . . Melee . | . . . . . Ramming . | . . . . . Kinetic 807 | . 61 251 99 396 Thermal 468 | . 468 . . . Explosive . | . . . . . Electromagnetic . | . . . . . Impact . | . . . . . Slashing . | . . . . . Piercing . | . . . . . Highest Corruption . | . . . . . Average Corruption . | . . . . . Corruption Purged . | . . . . . Corruption Blocked . | . . . . . Overload Shots . | . . . . . Overflow Damage 19 | . . . . 19 Projectiles 19 | . . . . 19 Explosions . | . . . . . Melee . | . . . . . Knockbacks 4 | . 1 . . 3 Impact . | . . . . . Kinetic 4 | . 1 . . 3 Secondary . | . . . . . Self-Inflicted Damage . | . . . . . Shots . | . . . . . Rammed . | . . . . . Targets Rammed . | . . . . . Kicked . | . . . . . Crushed . | . . . . . Highest Temperature 322 | . 322 4 . 166 Average Temperature 106 | . 135 1 . 56 Received Heat Transfer 563 | . 90 138 51 284 Effects 2 | . 2 . . . Energy Bleed 1 | . 1 . . . Short Circuit 1 | . 1 . . . Siege Activations . | . . . . . Martial Activations . | . . . . . Shielding Activations . | . . . . . Robots Disrupted . | . . . . . Combat Hostiles . | . . . . . Robots Corrupted . | . . . . . Combat Hostiles . | . . . . . Parts Fried . | . . . . . Impact Corruptions . | . . . . . Robots Melted . | . . . . . Combat Hostiles . | . . . . . Parts Melted 3 | . 2 . . 1 Heat Transferred 1473 | . 1473 . . . Parts Sabotaged . | . . . . . Parts Stolen 1 | . . . . 1 Parts Stripped . | . . . . . Power Chain Reactions . | . . . . . Alert | -11 -10 -10 -10 -8 ------- Run | Yrd Mat Min Sub Scr Maximum Alert Level . | . . . . . Low Security (%) 100 | 100 100 100 . . Level 1 . | . . . . . Level 2 . | . . . . . Level 3 . | . . . . . Level 4 . | . . . . . Level 5 . | . . . . . High Security . | . . . . . Max Security . | . . . . . Peak Influence 112 | . 112 40 . . Initial 30 | . . 30 . . Average 19 | . 24 14 . . Influence Increases 312 | . 212 50 50 . Destroy 0b10 Robot/C 240 | . 160 40 40 . Destroy 0b10 Robot/NC 5 | . 5 . . . Destroy Leader 60 | . 40 10 10 . Successful Hack 7 | . 7 . . . Influence Decreases 312 | . 133 129 50 . Entered New Map 49 | . . 49 . . Time Decay 240 | . 120 70 50 . Lost Part 23 | . 13 10 . . Squads Dispatched 2 | . 2 . . . Investigation . | . . . . . Extermination . | . . . . . Reinforcement 2 | . 2 . . . Assault . | . . . . . Garrison . | . . . . . Intercept . | . . . . . Searches Triggered . | . . . . . Construction Impeded . | . . . . . Haulers Reinforced . | . . . . . Active Scanning Responses . | . . . . . Cargo Convoy Interrupts . | . . . . . Stealth | -11 -10 -10 -10 -8 --------- Run | Yrd Mat Min Sub Scr Distress Signals 2 | . 2 . . . Communications Jammed . | . . . . . Distress Signals . | . . . . . Times Spotted 34 | . 16 2 2 14 Peak Tracking Total 5 | . 5 2 2 5 Tactical Retreats . | . . . . . Traps | -11 -10 -10 -10 -8 ------- Run | Yrd Mat Min Sub Scr Traps Triggered . | . . . . . Indirectly . | . . . . . Trap Hack Attempts . | . . . . . Triggered . | . . . . . Disarmed . | . . . . . Reprogrammed . | . . . . . Reused . | . . . . . Traps Extracted . | . . . . . Installed . | . . . . . Triggered . | . . . . . Machines | -11 -10 -10 -10 -8 ---------- Run | Yrd Mat Min Sub Scr Machines Disabled 2 | . . . . 2 Max in Single Turn 1 | . . . . 1 Machines Repaired . | . . . . . Machines Dismantled . | . . . . . Machines Sabotaged . | . . . . . Overloaded Fab Kills . | . . . . . Hacking | -11 -10 -10 -10 -8 --------- Run | Yrd Mat Min Sub Scr Machines Accessed 11 | . 3 . . 8 Terminals 2 | . 2 . . . Fabricators . | . . . . . Repair Stations . | . . . . . Recycling Units 1 | . 1 . . . Scanalyzers . | . . . . . Garrison Access . | . . . . . Total Hacks 71 | . 7 . . 64 Successful 67 | . 3 . . 64 Failed 4 | . 4 . . . Catastrophic 1 | . 1 . . . Database Lockouts . | . . . . . Manual . | . . . . . Terminals 6 | . 6 . . . Fabricators . | . . . . . Repair Stations . | . . . . . Recycling Units 1 | . 1 . . . Scanalyzers . | . . . . . Garrison Access . | . . . . . Terminal Hacks 66 | . 2 . . 64 Record 64 | . . . . 64 Branch Access Points 1 | . 1 . . . Zone Layout 1 | . 1 . . . Fabricator Hacks . | . . . . . Repair Station Hacks . | . . . . . Recycling Unit Hacks 1 | . 1 . . . Report Inventory 1 | . 1 . . . Scanalyzer . | . . . . . Garrison Access Hacks . | . . . . . Unauthorized Hacks . | . . . . . Terminals . | . . . . . Fabricators . | . . . . . Repair Stations . | . . . . . Recycling Units . | . . . . . Scanalyzers . | . . . . . Garrison Access . | . . . . . Data Cores Recovered . | . . . . . Used . | . . . . . Hacking Detections 2 | . 2 . . . Full Trace Events 1 | . 1 . . . Feedback Events . | . . . . . Feedback Blocked . | . . . . . Robot Schematics Acquired . | . . . . . Robots Built . | . . . . . Authchips . | . . . . . Time . | . . . . . Total Robot Build Rating . | . . . . . Part Schematics Acquired . | . . . . . Parts Built . | . . . . . Authchips . | . . . . . Time . | . . . . . Total Part Build Rating . | . . . . . Part Studies Acquired . | . . . . . Parts Repaired . | . . . . . Time . | . . . . . Parts Recycled . | . . . . . Recycled Matter . | . . . . . Retrieved Matter . | . . . . . Retrieved Components . | . . . . . Parts Scanalyzed . | . . . . . Part Schematics Acquired . | . . . . . Parts Damaged . | . . . . . Bothacking | -11 -10 -10 -10 -8 ------------ Run | Yrd Mat Min Sub Scr Used RIF Installer . | . . . . . Robots Hacked . | . . . . . Non-combat . | . . . . . Combat . | . . . . . Robot Hacks Applied . | . . . . . Relay Couplers Released . | . . . . . Fabnet Peak Effective % . | . . . . . Robots Rewired . | . . . . . Allies Hacked . | . . . . . Hacks Repelled . | . . . . . Allies | -11 -10 -10 -10 -8 -------- Run | Yrd Mat Min Sub Scr Total Allies . | . . . . . Largest Group . | . . . . . Highest-Rated Group . | . . . . . Highest-Rated Ally . | . . . . . Total Orders . | . . . . . Ally Attacks . | . . . . . Total Damage . | . . . . . Kills . | . . . . . Allies Corrupted . | . . . . . Allies Melted 2 | . . . . 2 Intel | -11 -10 -10 -10 -8 ------- Run | Yrd Mat Min Sub Scr Active Infowar (turns) . | . . . . . Robot Analysis Total . | . . . . . Derelict Logs Recovered 2 | . . 1 1 . Drone Launches . | . . . . . Drone Recoveries . | . . . . . Exploration | -11 -10 -10 -10 -8 ------------- Run | Yrd Mat Min Sub Scr Turns Passed 3380 | 110 599 225 166 2280 Spaces Moved 2481 | 63 431 160 131 1696 Core 3 | 3 . . . . Treads 156 | 60 61 . . 35 Legs 290 | . . . . 290 Wheels . | . . . . . Hover 2032 | . 370 160 131 1371 Flight . | . . . . . Fastest Speed 50 | 50 56 116 116 116 Average Speed 122 | 154 104 116 116 127 Slowest Speed 260 | 160 180 116 116 260 Overloaded Moves . | . . . . . Propulsion Burnouts . | . . . . . Robots Hopped . | . . . . . Potential Cave-ins . | . . . . . Cave-ins Triggered . | . . . . . Exploration Rate (%) 39 | 4 50 45 13 84 Regions Visited 4 Branch Regions 3 Pre-discovered Areas 2 | . . 1 . 1 Known Exits Taken 1 | . 1 . . . Unknown Exits Taken 3 | 1 . 1 1 . Scrap Searched 3 | . . . . 3 Spaces Dug . | . . . . . Terrain Destroyed 3 | . . . . 3 Melee . | . . . . . Projectile 3 | . . . . 3 AOE . | . . . . . Terrain Rammed . | . . . . . Walls Destroyed . | . . . . . Machines Disabled . | . . . . . Actions | -11 -10 -10 -10 -8 --------- Run | Yrd Mat Min Sub Scr Total 2690 | 73 515 175 135 1792 Wait 29 | 1 8 . . 20 Move 2477 | 62 430 159 130 1696 Hop . | . . . . . Pick Up 39 | 5 12 1 . 21 Fast Attach 17 | 5 5 1 . 6 Attach 4 | . 4 . . . Detach . | . . . . . Swap 12 | . 4 1 . 7 Drop 39 | . 11 1 . 27 Fire 72 | . 41 12 5 14 Melee . | . . . . . Ram . | . . . . . Kick . | . . . . . Crush . | . . . . . Escape Stasis . | . . . . . Rewire 1 | . . . . 1 Trap . | . . . . . Miscellaneous . | . . . . . Route ------- -11/Scrapyard -10/Materials (discovered 4 exits: [*Mat x2] / *Min x2) -10/Mines (discovered 3 exits: [*Mat x2] / [*Sub]) -10/Subcaves -8/Scraptown (discovered 1 exit: [*Fac]) History --------- Turn | Location | Event 12 | -11/Scrapyard | Discovered new exit (range 15) 111 | -11/Scrapyard | Entered Materials 344 | -10/Materials | Build established: Mutant 353 | -10/Materials | Discovered new exit (range 10) 470 | -10/Materials | Discovered new exit (range 15) 692 | -10/Materials | Discovered new exit (range 13) 695 | -10/Materials | Identified exit to Mines 710 | -10/Materials | Entered Mines 753 | -10/Mines | Core integrity fell below 50% 806 | -10/Mines | A weapon hastily lodged in a ceiling crevice suddenly fell to the ground 840 | -10/Mines | Learned location of Storage (-8) 841 | -10/Mines | Discovered new exit (range 15) 879 | -10/Mines | Discovered new exit (range 14) 923 | -10/Mines | Discovered new exit (range 9) 935 | -10/Mines | Entered Subcaves 936 | -10/Subcaves | Approached by a straggling Scientist 939 | -10/Subcaves | Learned Materials emergency access door positions 1100 | -10/Subcaves | Scientist uncovered a shortcut to Scraptown 1101 | -10/Subcaves | Entered Scraptown 1409 | -8/Scraptown | Discovered new exit (range 11) 1488 | -8/Scraptown | Heard Great Nut preacher, LISTEN AND RECITE! 1984 | -8/Scraptown | Visited UFD Registry 1999 | -8/Scraptown | Visited SPCMW 2053 | -8/Scraptown | Visited Shadow of the Wyrm 2083 | -8/Scraptown | Visited Cave Peace 2171 | -8/Scraptown | Visited Comm Corps 2320 | -8/Scraptown | Visited Cyclists 2375 | -8/Scraptown | Visited Assassins FH 2433 | -8/Scraptown | Registered with UFD as "Powereater" 2476 | -8/Scraptown | Entered Cyclist Reading Room 2557 | -8/Scraptown | Visited DA-N13 Charitable Foundation 2572 | -8/Scraptown | Found DCF Scrap (27 items) 2654 | -8/Scraptown | Visited Observation Area 2719 | -8/Scraptown | Visited Scrap Suit Storage 2735 | -8/Scraptown | Found Scrap Suit 2770 | -8/Scraptown | Visited Scrapoid Research Area 2817 | -8/Scraptown | Visited Supply Room 2935 | -8/Scraptown | Met Optimus 2935 | -8/Scraptown | Accepted into 0bPrime 3085 | -8/Scraptown | Visited Research Penetration Think Tank 3120 | -8/Scraptown | Visited Curators Association 3184 | -8/Scraptown | Visited Scrapoid Pod Storage 3195 | -8/Scraptown | Found Scrapoid Pod 3213 | -8/Scraptown | Civil war broke out across Scraptown 3252 | -8/Scraptown | Core integrity fell below 20% 3294 | -8/Scraptown | Lost 8 allies 3381 | -8/Scraptown | Destroyed by NR-AX7(j) with Overtuned Pulse Rifle Last Messages --------------- 03326_ X6-FL0(g) destroyed. 03328_ Dropped Ovr. Treads. 03330_ Acquired 10 matter. 03332_ ZM-JOT(E) cannibalizes Ovr. Treads to repair Ovr. Treads. 03365_ Slug penetrates Machine. 03372_ TB-B8Z(x) suffers critical hit (Destroy). 03372_ Critical hit (Burn: +50). 03373_ UQ-I8T(p): "Not fair, they have Elites!" 03373_ TB-B8Z(x) destroyed. 03375_ Critical hit (Burn: +50). 03376_ KU-2MN(j) heat spikes uncontrollably. 03376_ KU-2MN(j) overheating. 03377_ Slug penetrates KU-2MN(j). 03377_ Ovr. Pulse Rifle melted. 03377_ KU-2MN(j) destroyed. 03379_ Adv. Assault Cannon destroyed. 03380_ AH-FO7(j) heat spikes uncontrollably. 03380_ CV-QAF(j) destroyed. 03381_ AH-FO7(j) heat spikes uncontrollably. [Achievement: Achiever] Map ----- +----------------------------------------------------+ | ?????????????????????????????????????????????????? | | ?????????????????????????????????????????????????? | | ?????????????????????????????????????????????????? | | ?????????????????????????????????????????????????? | | ?????????????????????????????????????????????????? | | ?????????????????????????????????????????????????? | | ?????????????????????????????????????????????????? | | ???????????????????????######????????????????????? | | ???????????????#??????## #%###????!#????????????? | | ???????????""|##!!"#### ![!!""###[! ##???????????? | | ?????????[%![%*=! *!%!*%%!!!% %[#???????????? | | ?????????!*==!!*[ ===!=%= [*! ! #???????????? | | ?????????????##########=%= !%"########???????????? | | ??????????????????????##*!!#! #??????????????????? | | ???????????????????????#! #####???##?????????????? | | ???????????????????????#%!#??#"###"#?????????????? | | ???????????????????????#[ #### "&" ####??????????? | | ???????????????????????#!!#" """ "#??????????? | | ???????????????????????# ##"" ""#???????????? | | ???????????????????????# ##!" "=#???????????? | | ??????????????########## ##"" ""##??????????? | | ??????????????# """""""# #" "#??????????? | | ??????????????#" ! "# ##"" !% ""##??????????? | | ??????????????#" "#% ##]" "!#???????????? | | ??????????????#" ! "# =##"" ""##??????????? | | ??????????????#" "# @#" "#??????????? | | ?????? ???????#### ##### ## ##########??????????? | | ???### #?######### ##### ## ##??????????????????? | | """""" """"""""" " "" "" "" "##########?????????? | | *%= %[ !%%[ "##"""""""#?????????? | | ! ! % [ ## """"""#?????????? | | %% %%## ""#?????????? | | E * % ## ""#?????????? | | g =%! = ""#?????????? | | """""""""""" """"""""""[j%! "" "#?????????? | | ?"""""""""""""""""""""""=! ## ""#?????????? | | #### ################""= "## " """"#?????????? | | ##????????#"" = "##########?????????? | | X"#????????#""pjj! "##""""""#??????????? | | "" "" ##????????#"" ! ## "" "#??????????? | | "" "" X"#??????###" % ## "#??????????? | | " " ######### #" ## ! #??????????? | | "" = !== #??????????? | | "" ! ! "## #??????????? | | " " ######### #" "## "!! "#??????????? | | "" "" ""#??????###"" "##""""""#??????????? | | "" "" ##????????#"" "#########??????????? | | X"#????????#"" "#??????????????????? | | ##????????#"" "##############?????? | | #### ################"" "## """ """ #?????? | +----------------------------------------------------+ Best States ------------- Heat Dissipation 25 Coolant Potential 50 Energy Generation 14 Energy Capacity 250 Matter Stores 300 Matter Capacity 300 Sight Range 16 Terrain Scan Density 10 Propulsion Shielding 33 Evasion (%) 55 Recoil Reduction 2 Item Schematics ----------------- None Robot Schematics ------------------ None Fabricated ------------ Nothing Repaired ---------- Nothing Studied --------- None Alien Tech Used ----------------- None Achievements -------------- Achiever Backstab Bob, First Of His Name Civilization 2243 Link The Feds Nice Directions, Buddy Challenges ------------ None Game ------ Seed HugeRapidExoskeleton Manual? 0 Play Time 00:43:47 Cumulative 26.7 hours Start 2026.02.28 @ 17:21:11 End 2026.02.28 @ 18:32:27 Sessions 1 Manual Loads 0 Difficulty Rogue Special Mode None Game No. 27 Rogue 27 Adventurer 0 Explorer 0 Win Type - Total 0 Types 0/0/0/0/0/0/0/0/0/0 Lore% 21 Gallery% 26 Achievement% 25 Wizard Run 0 Options --------- Layout 0 ASCII 0 Keyboard 0 Movement Arrows Keybinds 0 Fullscreen 1 Font 18/SmallcapsGlow Map View 76x50 Zoom Use 0% Tactical HUD 1 Map Filters NONE Filters NONE Steam 1 RUN: 9f1fb021-b3d0-4913-9e14-c17eba59e315